fUSD/lending_fUSD_20251201
["ID","MTS","AMOUNT","RATE_DAILY","PERIOD"]
[395320492,1764619848882,-153.67,0.000413,30]
[395320493,1764619848891,-11665.9673576,0.00041329,2]
[395320494,1764619848901,-1568.15052189,0.0004134,120]
[395320495,1764619848911,-250.0,0.00041353,120]
[395320496,1764619848922,-500.0,0.0004137,60]
[395320497,1764619848933,-800.0,0.0004141,20]
[395320498,1764619848943,-4783.12,0.00041499,2]
[395320499,1764619848953,-3651.31083406,0.000415,120]
[395320532,1764621031620,-471.54,0.00013699,2]
[395320534,1764621031630,-195.0,0.00013699,2]
[395320535,1764621031640,-200.0,0.00013699,2]
[395320536,1764621031649,-195.0,0.00014328,2]
[395320537,1764621031659,-2503.41351552,0.00014648,2]
[395320542,1764621032066,-215.61936177,0.00014648,2]
[395320549,1764621032125,-300.0,0.00014746,2]
[395320551,1764621032135,-1200.0,0.00014746,2]
[395320553,1764621032144,-300.0,0.00014746,2]
[395320555,1764621032154,-150.0,0.00014747,2]
[395320557,1764621032163,-500.0,0.00014748,2]
[395320559,1764621032172,-1000.0,0.00014748,2]
[395320561,1764621032181,-9897.02712271,0.00014748,2]
[395320565,1764621032201,-16016.2840065,0.00014748,2]
[395320567,1764621032212,-79546.85165922,0.00014748,2]
[395320583,1764621037700,-301.6862601,0.00014747,2]
[395320584,1764621037710,-500.0,0.00014747,2]
[395320585,1764621037720,-283.59208982,0.00014747,2]
[395320586,1764621037730,-500.0,0.00014747,2]
[395320587,1764621037740,-500.0,0.00014747,2]
[395320588,1764621037750,-500.0,0.00014747,2]
[395320589,1764621037760,-500.0,0.00014747,2]
[395320590,1764621037770,-250.0,0.00014747,2]
[395320591,1764621037780,-82340.31165002,0.00014748,2]
[395320592,1764621037792,-680.48451678,0.00014748,2]
[395320593,1764621037812,-1087.43227824,0.00014748,2]
[395320594,1764621037828,-667.47093705,0.00014748,2]
[395320595,1764621037840,-18852.24326639,0.00014748,2]
[395320596,1764621037870,-2416.93348734,0.00014748,2]
[395320597,1764621037882,-534.12106949,0.00014748,2]
[395320598,1764621037927,-8558.02239242,0.00014748,2]
[395320599,1764621037938,-9274.39272382,0.00014748,2]
[395320758,1764621039720,-1585.3832149,0.00014748,2]
[395320768,1764621039777,-279.5831,0.00014748,2]
[395320771,1764621039788,-8861.00672097,0.00014748,2]
[395320773,1764621039800,-275.2141975,0.00014748,2]
[395320783,1764621039892,-406.7106177,0.00014748,2]
[395320785,1764621039906,-4535.61685727,0.00014748,2]
[395320787,1764621039917,-2090.40897658,0.00014748,2]
[395320789,1764621039929,-2616.97878022,0.00014748,2]
[395320798,1764621040009,-373.5644,0.00014748,2]
[395320801,1764621040020,-395.472,0.00014748,2]
[395320803,1764621040032,-1483.08635654,0.00014748,2]
[395321096,1764621042826,-719.2951,0.00014748,2]
[395321099,1764621042840,-332.4,0.00014748,2]
[395321138,1764621043236,-37.15439595,0.00014748,2]
[395321144,1764621043278,-3430.38185094,0.00014748,2]
[395321146,1764621043289,-236265.87639243,0.00014748,2]
[395321148,1764621043300,-9523.99957396,0.00014748,2]
[395321530,1764621047356,-83.93815098,0.00014748,2]
[395321533,1764621047371,-7701.32468255,0.00014748,2]
[395321535,1764621047382,-853.41212699,0.00014748,2]
[395321537,1764621047393,-12772.37847942,0.00014748,2]
[395321539,1764621047404,-5379.92644975,0.00014748,2]
[395322090,1764621966625,1051.85827338,0.00014647,5]
[395322120,1764622168105,156.37,7.218e-05,2]
[395322121,1764622168183,156.37,8.661e-05,2]
[395322122,1764622168289,156.37,0.00010105,2]
[395322123,1764622168330,156.37,0.00011548,2]
[395322147,1764622231889,-156.37,0.00012992,2]
[395322148,1764622231899,-156.37,0.00014436,2]
[395322149,1764622231909,-300.0,0.00014546,2]
[395322150,1764622231918,-737.73615637,0.00014546,2]
[395322151,1764622231929,-462.26384363,0.00014546,2]
[395322152,1764622231938,-300.0,0.00014546,2]
[395322153,1764622231947,-1000.0,0.00014547,2]
[395322154,1764622231957,-150.0,0.00014547,2]
[395322155,1764622231966,-500.0,0.00014547,2]
[395322156,1764622231975,-552.79781674,0.00014547,2]
[395322157,1764622231985,-289.03410708,0.00014547,2]
[395322158,1764622231994,-500.0,0.00014547,2]
[395322159,1764622232004,-363.34125676,0.00014547,2]
[395322160,1764622232016,-136.65874324,0.00014547,2]
[395322161,1764622232025,-500.0,0.00014547,2]
[395322162,1764622232035,-57.30332926,0.00014547,2]
[395322163,1764622232047,-442.69667074,0.00014547,2]
[395322164,1764622232057,-500.0,0.00014547,2]
[395322165,1764622232067,-500.0,0.00014547,2]
[395322166,1764622232077,-500.0,0.00014547,2]
[395322167,1764622232086,-500.0,0.00014547,2]
[395322168,1764622232096,-500.0,0.00014547,2]
[395322169,1764622232106,-500.0,0.00014547,2]
[395322170,1764622232116,-486.07241648,0.00014547,2]
[395322171,1764622232149,-13.92758352,0.00014547,2]
[395322172,1764622232159,-500.0,0.00014547,2]
[395322173,1764622232169,-500.0,0.00014547,2]
[395322174,1764622232178,-408.68179357,0.00014547,2]
[395322175,1764622232188,-500.0,0.00014547,2]
[395322176,1764622232202,-500.0,0.00014547,2]
[395322177,1764622232211,-500.0,0.00014547,2]
[395322178,1764622232221,-500.0,0.00014547,2]
[395322179,1764622232230,-500.0,0.00014547,2]
[395322180,1764622232241,-500.0,0.00014547,2]
[395322181,1764622232250,-500.0,0.00014547,2]
[395322182,1764622232260,-500.0,0.00014547,2]
[395322183,1764622232270,-500.0,0.00014547,2]
[395322184,1764622232279,-500.0,0.00014547,2]
[395322185,1764622232288,-500.0,0.00014547,2]
[395322186,1764622232298,-500.0,0.00014547,2]
[395322187,1764622232308,-500.0,0.00014547,2]
[395322188,1764622232317,-500.0,0.00014547,2]
[395322189,1764622232327,-500.0,0.00014547,2]
[395322190,1764622232337,-633.88525816,0.00014547,2]
[395322191,1764622232347,-500.0,0.00014547,2]
[395322192,1764622232356,-500.0,0.00014547,2]
[395322193,1764622232366,-500.0,0.00014547,2]
[395322194,1764622232375,-500.0,0.00014547,2]
[395322195,1764622232385,-896.48,0.00014547,2]
[395322196,1764622232394,-11919.27891262,0.00014548,2]
[395322198,1764622232403,-16237.52623279,0.00014548,2]
[395322200,1764622232415,-4087.72854754,0.00014548,2]
[395322202,1764622232424,-188.66694154,0.00014548,2]
[395322204,1764622232433,-151.0,0.00014645,2]
[395322205,1764622232443,-932.591133,0.00014645,2]
[395322206,1764622232452,-192.80736129,0.00014647,2]
[395322207,1764622232461,-561.18038207,0.00014647,2]
[395322208,1764622232470,-499.60724259,0.00014647,2]
[395322209,1764622232479,-1000.0,0.00014648,2]
[395322210,1764622232488,-71732.5856785,0.00014648,2]
[395322211,1764622232500,-211058.7021951,0.00014648,2]
[395322212,1764622232511,-820.7253007,0.00014648,2]
[395322213,1764622232522,-4608.85421297,0.00014648,2]
[395322214,1764622232532,-1525.18634995,0.00014648,2]
[395322215,1764622232543,-3161.26688022,0.00014648,2]
[395322216,1764622232554,-494.91920915,0.00014648,2]
[395322217,1764622232565,-2038.14590756,0.00014648,2]
[395322218,1764622232576,-844.30991662,0.00014648,2]
[395322219,1764622232591,-3622.20901238,0.00014648,2]
[395322220,1764622232602,-1126.35397208,0.00014648,2]
[395322227,1764622239805,-9102.8151,0.00014648,2]
[395322228,1764622239817,-1917.36410537,0.00014648,2]
[395322229,1764622239828,-425.7576315,0.00014648,2]
[395322230,1764622239839,-3119.58589212,0.00014648,2]
[395322233,1764622239855,-671.8045653,0.00014648,2]
[395322235,1764622239866,-1552.3196481,0.00014648,2]
[395322236,1764622239877,-3064.0,0.00014648,2]
[395322237,1764622240138,-2064.347687,0.00014648,2]
[395322238,1764622240170,-2748.5595335,0.00014648,2]
[395322239,1764622240191,-434300.18720188,0.00014648,2]
[395322240,1764622240203,-2491.4269,0.00014648,2]
[395322241,1764622240214,-11280.4097,0.00014648,2]
[395322242,1764622240224,-2500.0,0.00014648,2]
[395322243,1764622240233,-3760.296,0.00014648,2]
[395322244,1764622240244,-2498.2296,0.00014648,2]
[395322245,1764622240253,-280.8878,0.00014648,2]
[395322246,1764622240263,-1000.0,0.00014648,2]
[395322247,1764622240273,-153.71886235,0.00014733,2]
[395322248,1764622240285,-9006.9009405,0.00014747,2]
[395322249,1764622240294,-5944.6971878,0.00014747,2]
[395322250,1764622240304,-500.0,0.00014747,2]
[395322251,1764622240314,-56953.7161196,0.00014747,2]
[395322252,1764622240324,-500.0,0.00014747,2]
[395322253,1764622240334,-500.0,0.00014747,2]
[395322255,1764622240343,-500.0,0.00014747,2]
[395322257,1764622240353,-500.0,0.00014747,2]
[395322259,1764622240362,-500.0,0.00014747,2]
[395322260,1764622240371,-500.0,0.00014747,2]
[395322261,1764622240381,-500.0,0.00014747,2]
[395322262,1764622240390,-500.0,0.00014747,2]
[395322263,1764622240399,-522.47521665,0.00014747,2]
[395322264,1764622240787,-500.0,0.00014747,2]
[395322265,1764622240796,-500.0,0.00014747,2]
[395322266,1764622240806,-11919.27891259,0.00014809,2]
[395322267,1764622240816,-20325.25478026,0.00014809,2]
[395322268,1764622240826,-896.48,0.00014821,2]
[395322269,1764622240835,-567.86060721,0.00014847,2]
[395322270,1764622240845,-500.0,0.00014847,2]
[395322271,1764622240854,-500.0,0.00014847,2]
[395322272,1764622240863,-500.0,0.00014847,2]
[395322273,1764622240872,-500.0,0.00014847,2]
[395322274,1764622240881,-547.41803348,0.00014847,2]
[395322275,1764622240891,-500.0,0.00014847,2]
[395322276,1764622240899,-500.0,0.00014847,2]
[395322277,1764622240909,-500.0,0.00014847,2]
[395322278,1764622240919,-500.0,0.00014847,2]
[395322279,1764622240929,-280.3,0.00014937,2]
[395322280,1764622240938,-6315.37,0.00014967,2]
[395322281,1764622240948,-11919.27891259,0.00015071,2]
[395322282,1764622240958,-20325.25478026,0.00015071,2]
[395322283,1764622240967,-3704.46,0.00015092,2]
[395322284,1764622240976,-896.48,0.00015095,2]
[395322285,1764622240985,-1000.0,0.00015109,2]
[395322286,1764622240995,-182.86,0.00015138,2]
[395322287,1764622241004,-452.87712558,0.00015196,2]
[395322288,1764622241014,-150.0,0.00015288,2]
[395322289,1764622241025,-150.0,0.00015288,2]
[395322290,1764622241035,-150.0,0.00015288,2]
[395322291,1764622241044,-150.0,0.00015288,2]
[395322292,1764622241053,-150.0,0.00015288,2]
[395322293,1764622241062,-150.0,0.00015288,2]
[395322294,1764622241078,-150.0,0.00015288,2]
[395322295,1764622241088,-150.0,0.00015288,2]
[395322296,1764622241098,-150.0,0.00015288,2]
[395322297,1764622241107,-150.0,0.00015288,2]
[395322298,1764622241117,-150.0,0.00015288,2]
[395322299,1764622241127,-150.0,0.00015288,2]
[395322300,1764622241137,-150.0,0.00015288,2]
[395322301,1764622241146,-190.82998658,0.00015288,2]
[395322302,1764622241156,-150.0,0.00015288,2]
[395322303,1764622241166,-150.0,0.00015288,2]
[395322304,1764622241176,-244.99,0.0001531,2]
[395322305,1764622241186,-151.0,0.00015329,2]
[395322306,1764622241196,-11919.27891259,0.00015332,2]
[395322307,1764622241212,-20325.25478026,0.00015332,2]
[395322308,1764622241222,-896.48,0.00015369,2]
[395322309,1764622241231,-150.0,0.00015373,2]
[395322310,1764622241242,-150.0,0.00015377,2]
[395322311,1764622241252,-150.0,0.00015401,2]
[395322312,1764622241263,-150.0,0.00015429,2]
[395322313,1764622241272,-150.0,0.00015458,2]
[395322314,1764622241283,-150.0,0.00015458,2]
[395322315,1764622241293,-150.0,0.00015466,2]
[395322316,1764622241307,-150.0,0.00015476,2]
[395322317,1764622241317,-150.0,0.00015476,2]
[395322318,1764622241327,-150.0,0.00015514,2]
[395322319,1764622241337,-150.0,0.0001553,2]
[395322320,1764622241346,-150.0,0.0001553,2]
[395322321,1764622241356,-150.0,0.00015542,2]
[395322322,1764622241365,-150.0,0.00015556,2]
[395322323,1764622241376,-150.0,0.00015571,2]
[395322324,1764622241387,-11919.27891259,0.00015593,2]
[395322325,1764622241396,-20325.25478026,0.00015593,2]
[395322326,1764622241406,-150.0,0.00015627,2]
[395322327,1764622241416,-150.0,0.00015627,2]
[395322328,1764622241426,-150.0,0.00015627,2]
[395322329,1764622241436,-896.48,0.00015643,2]
[395322330,1764622241445,-150.0,0.00015645,2]
[395322331,1764622241455,-150.0,0.00015665,2]
[395322332,1764622241465,-150.0,0.00015665,2]
[395322333,1764622241474,-255.0,0.00015667,2]
[395322334,1764622241483,-150.0,0.00015712,2]
[395322335,1764622241492,-150.0,0.00015712,2]
[395322336,1764622241502,-150.0,0.00015712,2]
[395322337,1764622241512,-150.0,0.00015735,2]
[395322338,1764622241521,-150.0,0.00015741,2]
[395322339,1764622241531,-150.0,0.00015773,2]
[395322340,1764622241541,-150.0,0.00015773,2]
[395322341,1764622241550,-150.0,0.00015797,2]
[395322342,1764622241560,-150.0,0.00015797,2]
[395322343,1764622241570,-150.0,0.00015824,2]
[395322344,1764622241579,-150.0,0.00015854,2]
[395322345,1764622241589,-150.0,0.00015854,2]
[395322346,1764622241599,-150.0,0.00015854,2]
[395322347,1764622241608,-150.0,0.00015854,2]
[395322348,1764622241618,-150.0,0.00015854,2]
[395322349,1764622241628,-11919.27891259,0.00015855,2]
[395322350,1764622241637,-20325.25478026,0.00015855,2]
[395322351,1764622241647,-150.0,0.00015882,2]
[395322352,1764622241656,-336.30767482,0.000159,2]
[395322353,1764622241666,-336.3076748,0.000159,2]
[395322354,1764622241675,-336.3076748,0.000159,2]
[395322355,1764622241685,-336.3076748,0.000159,2]
[395322356,1764622241695,-544.87415153,0.00015903,2]
[395322357,1764622241704,-177.65675828,0.00015911,2]
[395322358,1764622241713,-150.0,0.00015913,2]
[395322359,1764622241723,-896.48,0.00015917,2]
[395322360,1764622241734,-240.0,0.00015927,2]
[395322361,1764622241744,-240.0,0.00015927,2]
[395322362,1764622241753,-150.0,0.00015966,2]
[395322363,1764622241763,-150.0,0.00015967,2]
[395322364,1764622241773,-150.0,0.00015967,2]
[395322365,1764622241783,-150.0,0.00015967,2]
[395322366,1764622241792,-1292.25888434,0.0001599,2]
[395322367,1764622241802,-151.0,0.0001599,2]
[395322368,1764622241812,-151.0,0.0001599,2]
[395322369,1764622241822,-151.0,0.0001599,2]
[395322370,1764622241832,-151.0,0.0001599,2]
[395322371,1764622241842,-151.0,0.0001599,2]
[395322372,1764622241851,-150.0,0.00015995,2]
[395322373,1764622241862,-151.0,0.00015997,2]
[395322374,1764622241871,-151.0,0.00015997,2]
[395322375,1764622241881,-500.0,0.00015999,2]
[395322376,1764622241890,-500.0,0.00015999,2]
[395322377,1764622241900,-500.0,0.00015999,2]
[395322378,1764622241909,-500.0,0.00015999,2]
[395322379,1764622241919,-500.0,0.00015999,2]
[395322380,1764622241932,-244.41673443,0.00015999,2]
[395322381,1764622241943,-500.0,0.00015999,2]
[395322382,1764622241953,-500.0,0.00015999,2]
[395322383,1764622241962,-500.0,0.00015999,2]
[395322384,1764622241972,-500.0,0.00015999,2]
[395322385,1764622241982,-500.0,0.00015999,2]
[395322386,1764622241992,-500.0,0.00015999,2]
[395322387,1764622242004,-500.0,0.00015999,2]
[395322388,1764622242015,-500.0,0.00015999,2]
[395322389,1764622242025,-500.0,0.00015999,2]
[395322390,1764622242036,-500.0,0.00015999,2]
[395322391,1764622242046,-393.0941693,0.00015999,2]
[395322392,1764622242056,-500.0,0.00015999,2]
[395322393,1764622242066,-485.52312637,0.00015999,2]
[395322394,1764622242076,-500.0,0.00015999,2]
[395322395,1764622242086,-242.79480687,0.00015999,2]
[395322396,1764622242097,-500.0,0.00015999,2]
[395322397,1764622242107,-501.94091737,0.00015999,2]
[395322398,1764622242117,-500.0,0.00015999,2]
[395322399,1764622242126,-500.0,0.00015999,2]
[395322400,1764622242136,-500.274,0.00015999,2]
[395322401,1764622242146,-552.29203276,0.00016,2]
[395322402,1764622242156,-241751.88629714,0.00016,2]
[395322403,1764622242166,-904256.95238478,0.00016,4]
[395322404,1764622242180,-53770.3733295,0.00016,4]
[395322405,1764622242190,-151.0,0.00016,2]
[395322406,1764622242200,-151.0,0.00016,2]
[395322407,1764622242214,-151.0,0.00016,2]
[395322408,1764622242224,-151.0,0.00016,2]
[395322409,1764622242233,-480.0,0.00016001,2]
[395322410,1764622242243,-150.0,0.00016003,2]
[395322411,1764622242254,-150.0,0.00016016,2]
[395322412,1764622242264,-150.0,0.00016016,2]
[395322413,1764622242273,-150.0,0.00016043,2]
[395322414,1764622242283,-150.0,0.00016043,2]
[395322415,1764622242293,-150.0,0.00016052,2]
[395322416,1764622242302,-150.0,0.0001608,2]
[395322417,1764622242312,-150.0,0.00016092,2]
[395322418,1764622242321,-11919.27891259,0.00016116,2]
[395322419,1764622242331,-20325.25478026,0.00016116,2]
[395322420,1764622242340,-150.0,0.00016137,2]
[395322421,1764622242350,-150.0,0.00016137,2]
[395322422,1764622242359,-150.0,0.00016137,2]
[395322423,1764622242368,-150.0,0.00016137,2]
[395322424,1764622242378,-150.0,0.00016182,2]
[395322425,1764622242387,-896.48,0.00016191,2]
[395322426,1764622242396,-150.0,0.00016194,2]
[395322427,1764622242406,-5000.00547792,0.000162,5]
[395322428,1764622242416,-150.0,0.00016222,2]
[395322429,1764622242426,-150.0,0.00016231,2]
[395322430,1764622242435,-150.0,0.00016231,2]
[395322431,1764622242445,-150.0,0.00016258,2]
[395322432,1764622242454,-150.0,0.00016258,2]
[395322433,1764622242464,-150.0,0.00016271,2]
[395322434,1764622242473,-150.0,0.00016279,2]
[395322435,1764622242483,-150.0,0.00016307,2]
[395322436,1764622242492,-150.0,0.00016307,2]
[395322437,1764622242502,-150.0,0.00016307,2]
[395322438,1764622242511,-150.0,0.0001636,2]
[395322439,1764622242521,-11919.27891259,0.00016377,2]
[395322440,1764622242531,-20325.25478026,0.00016377,2]
[395322441,1764622242541,-150.0,0.00016392,2]
[395322442,1764622242551,-544.87415151,0.00016402,2]
[395322443,1764622242560,-150.0,0.0001642,2]
[395322444,1764622242570,-150.0,0.0001642,2]
[395322445,1764622242579,-150.0,0.0001642,2]
[395322446,1764622242589,-150.0,0.0001642,2]
[395322447,1764622242598,-150.0,0.0001642,2]
[395322448,1764622242607,-500.0,0.00016438,2]
[395322449,1764622242617,-500.0,0.00016438,2]
[395322450,1764622242627,-633.37303043,0.00016438,2]
[395322451,1764622242636,-500.0,0.00016438,2]
[395322452,1764622242645,-500.0,0.00016438,2]
[395322453,1764622242655,-500.0,0.00016438,2]
[395322454,1764622242664,-500.0,0.00016438,2]
[395322456,1764622242674,-500.0,0.00016438,2]
[395322457,1764622242683,-3607.03,0.00016438,2]
[395322458,1764622242691,-800.0,0.00016438,2]
[395322459,1764622242701,-150.0,0.0001645,2]
[395322460,1764622242710,-896.48,0.00016465,2]
[395322462,1764622242719,-150.0,0.00016477,2]
[395322463,1764622242728,-150.0,0.00016477,2]
[395322465,1764622242738,-150.0,0.00016501,2]
[395322466,1764622242747,-150.0,0.00016501,2]
[395322467,1764622242756,-150.0,0.00016533,2]
[395322468,1764622242766,-150.0,0.00016539,2]
[395322469,1764622242775,-150.0,0.00016562,2]
[395322471,1764622242785,-150.0,0.00016562,2]
[395322472,1764622242794,-150.0,0.00016562,2]
[395322473,1764622242804,-2751.0,0.00016583,2]
[395322474,1764622242814,-357.76401239,0.000166,2]
[395322475,1764622242824,-150.0,0.00016609,2]
[395322476,1764622242834,-150.0,0.00016609,2]
[395322477,1764622242843,-2009.7112492,0.00016615,2]
[395322478,1764622242853,-1326.4412355,0.00016615,2]
[395322479,1764622242862,-12708.0917988,0.00016625,2]
[395322480,1764622242872,-150.0,0.00016629,2]
[395322481,1764622242882,-11919.27891259,0.00016639,2]
[395322482,1764622242891,-20325.25478026,0.00016639,2]
[395322483,1764622242901,-150.0,0.00016647,2]
[395322484,1764622242911,-150.0,0.00016647,2]
[395322485,1764622242921,-150.0,0.00016647,2]
[395322486,1764622242931,-150.0,0.00016703,2]
[395322487,1764622242940,-176.07,0.00016712,2]
[395322488,1764622242950,-150.0,0.00016718,2]
[395322489,1764622242960,-150.0,0.00016732,2]
[395322490,1764622242970,-896.48,0.00016739,2]
[395322491,1764622242980,-150.0,0.00016744,2]
[395322492,1764622242989,-150.0,0.00016744,2]
[395322493,1764622242999,-150.0,0.0001676,2]
[395322494,1764622243009,-150.0,0.00016798,2]
[395322495,1764622243018,-150.0,0.00016798,2]
[395322496,1764622243028,-150.0,0.00016807,2]
[395322497,1764622243037,-150.0,0.00016816,2]
[395322498,1764622243046,-150.0,0.00016816,2]
[395322499,1764622243056,-150.0,0.00016845,2]
[395322500,1764622243066,-150.0,0.00016872,2]
[395322501,1764622243076,-150.0,0.00016873,2]
[395322502,1764622243085,-433.0,0.00016875,2]
[395322503,1764622243094,-500.0,0.00016877,2]
[395322504,1764622243104,-150.0,0.00016897,2]
[395322505,1764622243114,-11919.27891259,0.000169,2]
[395322506,1764622243123,-544.87415151,0.000169,2]
[395322507,1764622243133,-20325.25478026,0.000169,2]
[395322508,1764622243143,-263.68352015,0.000169,2]
[395322509,1764622243152,-216.06157058,0.000169,2]
[395322510,1764622243162,-182.42815085,0.000169,2]
[395322511,1764622243172,-150.0,0.00016901,2]
[395322512,1764622243181,-300.85730487,0.00016973,2]
[395322513,1764622243191,-500.0,0.00016973,2]
[395322514,1764622243201,-500.0,0.00016973,2]
[395322515,1764622243213,-500.0,0.00016973,2]
[395322516,1764622243223,-500.0,0.00016973,2]
[395322517,1764622243233,-500.0,0.00016973,2]
[395322518,1764622243243,-159.45765875,0.00016973,2]
[395322519,1764622243252,-500.0,0.00016973,2]
[395322520,1764622243262,-500.0,0.00016973,2]
[395322521,1764622243271,-500.0,0.00016973,2]
[395322522,1764622243284,-500.0,0.00016973,2]
[395322523,1764622243294,-500.0,0.00016973,2]
[395322524,1764622243303,-500.0,0.00016973,2]
[395322525,1764622243313,-500.0,0.00016973,2]
[395322527,1764622243322,-500.0,0.00016973,2]
[395322529,1764622243332,-500.0,0.00016973,2]
[395322531,1764622243341,-500.0,0.00016973,2]
[395322533,1764622243350,-500.0,0.00016973,2]
[395322534,1764622243359,-500.0,0.00016973,2]
[395322535,1764622243369,-500.0,0.00016973,2]
[395322536,1764622243379,-500.0,0.00016973,2]
[395322537,1764622243388,-500.0,0.00016973,2]
[395322538,1764622243398,-233.06885898,0.00016973,2]
[395322539,1764622243407,-500.0,0.00016973,2]
[395322540,1764622243417,-162.47379321,0.00016973,2]
[395322541,1764622243426,-1716.0,0.00016986,2]
[395322542,1764622243435,-15940.0,0.00016986,2]
[395322543,1764622243445,-150.0,0.00016986,2]
[395322544,1764622243455,-154.6279571,0.00016986,2]
[395322545,1764622243465,-159.02910352,0.00016986,2]
[395322546,1764622243475,-150.0,0.00016986,2]
[395322547,1764622243484,-224.56558135,0.00016986,2]
[395322548,1764622243493,-150.00000001,0.00016986,2]
[395322549,1764622243502,-150.63510213,0.00016986,2]
[395322550,1764622243511,-150.0,0.00016986,2]
[395322551,1764622243521,-238.95743324,0.00016986,2]
[395322552,1764622243530,-150.0,0.00016986,2]
[395322553,1764622243539,-260.76603447,0.00016986,2]
[395322554,1764622243548,-150.0,0.00016986,2]
[395322555,1764622243558,-150.0,0.00016986,2]
[395322556,1764622243567,-168.22944718,0.00016986,2]
[395322557,1764622243576,-1292.25888434,0.0001699,2]
[395322558,1764622243586,-1292.25888434,0.0001699,2]
[395322559,1764622243596,-151.0,0.00016997,2]
[395322560,1764622243606,-1000.0,0.00016998,2]
[395322561,1764622243616,-300.0,0.00016999,2]
[395322562,1764622243625,-300.0,0.00016999,2]
[395322563,1764622243635,-500.0,0.00016999,2]
[395322564,1764622243645,-500.0,0.00016999,2]
[395322565,1764622243654,-500.0,0.00016999,2]
[395322566,1764622243663,-500.0,0.00016999,2]
[395322567,1764622243673,-68994.95485219,0.00017,2]
[395322568,1764622243683,-5672980.37447374,0.00017,2]
[395322569,1764622243692,-1252541.42397929,0.00017,2]
[395322570,1764622243702,-151.0,0.00017,2]
[395322571,1764622243711,-151.0,0.00017,2]
[395322572,1764622243720,-201.11287879,0.00017,2]
[395322573,1764622243730,-151.0,0.00017,2]
[395322574,1764622243739,-151.0,0.00017,2]
[395322575,1764622243748,-250.91363,0.00017,2]
[395322576,1764622243757,-171.488333,0.00017,2]
[395322577,1764622243767,-171.488333,0.00017,2]
[395322578,1764622243776,-171.488333,0.00017,2]
[395322579,1764622243786,-171.488333,0.00017,2]
[395322580,1764622243796,-171.488333,0.00017,2]
[395322581,1764622243805,-171.488333,0.00017,2]
[395322582,1764622243814,-171.488333,0.00017,2]
[395322583,1764622243823,-171.488333,0.00017,2]
[395322584,1764622243832,-172.851004,0.00017,2]
[395322585,1764622243842,-172.851004,0.00017,2]
[395322586,1764622243852,-172.851004,0.00017,2]
[395322587,1764622243861,-172.851004,0.00017,2]
[395322588,1764622243870,-172.851004,0.00017,2]
[395322589,1764622243879,-172.851004,0.00017,2]
[395322590,1764622243888,-172.851004,0.00017,2]
[395322591,1764622243898,-172.851004,0.00017,2]
[395322592,1764622243907,-151.0,0.00017,2]
[395322593,1764622243915,-151.0,0.00017,2]
[395322594,1764622243925,-151.0,0.00017,2]
[395322595,1764622243934,-151.0,0.00017,2]
[395322596,1764622243943,-151.0,0.00017,2]
[395322597,1764622243952,-151.0,0.00017,2]
[395322598,1764622243962,-151.0,0.00017,2]
[395322599,1764622243971,-896.48,0.00017013,2]
[395322600,1764622243980,-448.4271929,0.00017032,2]
[395322601,1764622243990,-295.9690453,0.00017032,2]
[395322602,1764622243999,-2835.5585582,0.00017044,2]
[395322603,1764622244008,-896.48,0.00017287,2]